[Event "*** Titled Tuesday Blitz"]
[Site "Chess.com"]
[Date "2021.03.30"]
[Round "8"]
[White "Srinavasan"]
[Black "Sam_ChessMood"]
[Result "1-0"]
[WhiteElo "2986"]
[BlackElo "2868"]
[TimeControl "180+1"]
[EndTime "11:28:33 PDT"]
[Termination "Srinavasan won by resignation"]

1. c4 {[%clk 0:03:00.9]} 1... c6 {[%clk 0:02:58.6]} 2. Nf3 {[%clk 0:02:57]} 2...
d5 {[%clk 0:02:58.6]} 3. e3 {[%clk 0:02:57.7]} 3... Nf6 {[%clk 0:02:57.7]} 4.
Nc3 {[%clk 0:02:57.7]} 4... g6 {[%clk 0:02:57.4]} 5. d4 {[%clk 0:02:56.8]} 5...
Bg7 {[%clk 0:02:57.8]} 6. Be2 {[%clk 0:02:55.5]} 6... O-O {[%clk 0:02:57.7]} 7.
O-O {[%clk 0:02:55.5]} 7... b6 {[%clk 0:02:57.9]} 8. b3 {[%clk 0:02:45.3]} 8...
Bb7 {[%clk 0:02:57.3]} 9. Bb2 {[%clk 0:02:44.8]} 9... e6 {[%clk 0:02:54.1]} 10.
Ne5 {[%clk 0:02:39.3]} 10... Nbd7 {[%clk 0:02:53.3]} 11. f4 {[%clk 0:02:39.9]}
11... c5 {[%clk 0:02:52.4]} 12. Bf3 {[%clk 0:02:39.7]} 12... cxd4 {[%clk
0:02:20.2]} 13. exd4 {[%clk 0:02:40.6]} 13... Rc8 {[%clk 0:02:01.1]} 14. Nb5
{[%clk 0:02:34]} 14... a6 {[%clk 0:01:44.1]} 15. Nd6 {[%clk 0:02:32.6]} 15...
Rc7 {[%clk 0:01:41.2]} 16. Nxb7 {[%clk 0:02:22.6]} 16... Rxb7 {[%clk 0:01:41.3]}
17. Qd3 {[%clk 0:02:02.2]} 17... Nb8 {[%clk 0:01:25.1]} 18. Rac1 {[%clk
0:01:59]} 18... Rc7 {[%clk 0:01:12.7]} 19. Rfd1 {[%clk 0:01:51.2]} 19... Re8
{[%clk 0:01:12.2]} 20. g4 {[%clk 0:01:47.3]} 20... Nc6 {[%clk 0:00:54]} 21. g5
{[%clk 0:01:40.8]} 21... Nxe5 {[%clk 0:00:44.5]} 22. dxe5 {[%clk 0:01:38]} 22...
Nh5 {[%clk 0:00:35.8]} 23. Bxh5 {[%clk 0:01:36.5]} 23... gxh5 {[%clk 0:00:36.7]}
24. cxd5 {[%clk 0:01:36.5]} 24... Rxc1 {[%clk 0:00:36.4]} 25. Bxc1 {[%clk
0:01:37.4]} 25... exd5 {[%clk 0:00:34.5]} 26. Qxd5 {[%clk 0:01:37.3]} 26... Qc8
{[%clk 0:00:34.4]} 27. Qd7 {[%clk 0:01:31.8]} 27... Qa8 {[%clk 0:00:26.3]} 28.
Be3 {[%clk 0:01:29.4]} 28... Bf8 {[%clk 0:00:23.2]} 29. Qd5 {[%clk 0:01:23]}
29... Qc8 {[%clk 0:00:20.6]} 30. Qf3 {[%clk 0:01:21.5]} 30... Qc2 {[%clk
0:00:16]} 31. Rd2 {[%clk 0:01:17.9]} 31... Qc1+ {[%clk 0:00:15.1]} 32. Kg2
{[%clk 0:01:18.1]} 32... Rc8 {[%clk 0:00:09.2]} 33. Qe4 {[%clk 0:00:53.3]} 33...
Qe1 {[%clk 0:00:07.5]} 34. e6 {[%clk 0:00:53.3]} 34... Re8 {[%clk 0:00:02.7]}
35. exf7+ {[%clk 0:00:48.6]} 35... Kxf7 {[%clk 0:00:03.6]} 36. Qxh7+ {[%clk
0:00:38.8]} 1-0

[Event "*** Titled Tuesday Blitz"]
[Site "Chess.com"]
[Date "2021.03.30"]
[Round "8"]
[White "DonBroca"]
[Black "MIJuanReyesRosa"]
[Result "1-0"]
[WhiteElo "2232"]
[BlackElo "2095"]
[TimeControl "180+1"]
[EndTime "11:28:35 PDT"]
[Termination "DonBroca won on time"]

1. e4 {[%clk 0:02:58.6]} 1... c5 {[%clk 0:02:59.6]} 2. Nf3 {[%clk 0:02:57.2]}
2... e6 {[%clk 0:02:59.5]} 3. d4 {[%clk 0:02:57.3]} 3... cxd4 {[%clk 0:02:59.7]}
4. Nxd4 {[%clk 0:02:58.1]} 4... a6 {[%clk 0:03:00]} 5. c4 {[%clk 0:02:57.7]}
5... Qc7 {[%clk 0:02:59.9]} 6. Nc3 {[%clk 0:02:56.8]} 6... Nf6 {[%clk
0:02:59.5]} 7. Be3 {[%clk 0:02:53.1]} 7... b6 {[%clk 0:02:57.7]} 8. g3 {[%clk
0:02:42.4]} 8... Bb7 {[%clk 0:02:56.7]} 9. f3 {[%clk 0:02:40.5]} 9... Be7 {[%clk
0:02:53.1]} 10. Rc1 {[%clk 0:02:40.1]} 10... d6 {[%clk 0:02:49.6]} 11. b3 {[%clk
0:02:40.2]} 11... O-O {[%clk 0:02:47.7]} 12. Bg2 {[%clk 0:02:40.6]} 12... Nbd7
{[%clk 0:02:47.6]} 13. O-O {[%clk 0:02:40.3]} 13... Rac8 {[%clk 0:02:45.6]} 14.
Qd2 {[%clk 0:02:32.2]} 14... Qb8 {[%clk 0:02:44]} 15. Bf4 {[%clk 0:02:16.5]}
15... Ne5 {[%clk 0:02:35.9]} 16. Rfd1 {[%clk 0:02:00.5]} 16... Rfd8 {[%clk
0:02:31.4]} 17. Nc2 {[%clk 0:01:52.7]} 17... Ng6 {[%clk 0:02:14.7]} 18. Be3
{[%clk 0:01:42.8]} 18... Bc6 {[%clk 0:02:02.5]} 19. Qf2 {[%clk 0:01:30.3]} 19...
b5 {[%clk 0:01:50.8]} 20. cxb5 {[%clk 0:01:23.2]} 20... axb5 {[%clk 0:01:50]}
21. Nb4 {[%clk 0:01:15.3]} 21... Ba8 {[%clk 0:01:46.8]} 22. Bb6 {[%clk
0:00:43.7]} 22... Re8 {[%clk 0:01:32.9]} 23. Nxb5 {[%clk 0:00:41.5]} 23... d5
{[%clk 0:01:23.4]} 24. Nc7 {[%clk 0:00:33.4]} 24... Rxc7 {[%clk 0:01:06]} 25.
Rxc7 {[%clk 0:00:27.3]} 25... Bxb4 {[%clk 0:01:05.9]} 26. Rdc1 {[%clk
0:00:20.4]} 26... dxe4 {[%clk 0:00:59.1]} 27. fxe4 {[%clk 0:00:20]} 27... Bxe4
{[%clk 0:00:50.9]} 28. Bxe4 {[%clk 0:00:19.4]} 28... Nxe4 {[%clk 0:00:50.8]} 29.
Qxf7+ {[%clk 0:00:18.7]} 1-0

[Event "*** Titled Tuesday Blitz"]
[Site "Chess.com"]
[Date "2021.03.30"]
[Round "8"]
[White "IljaJoke"]
[Black "losersgame"]
[Result "1-0"]
[WhiteElo "2503"]
[BlackElo "2331"]
[TimeControl "180+1"]
[EndTime "11:28:36 PDT"]
[Termination "IljaJoke won by checkmate"]

1. e4 {[%clk 0:03:00.9]} 1... e5 {[%clk 0:02:59.6]} 2. Nf3 {[%clk 0:03:01]} 2...
Nc6 {[%clk 0:03:00.1]} 3. Bc4 {[%clk 0:03:00.9]} 3... g6 {[%clk 0:02:59.6]} 4.
Nc3 {[%clk 0:02:54.2]} 4... Bg7 {[%clk 0:02:57.2]} 5. h4 {[%clk 0:02:43.5]} 5...
h6 {[%clk 0:02:25]} 6. d4 {[%clk 0:02:23.1]} 6... Nxd4 {[%clk 0:02:17.9]} 7. Be3
{[%clk 0:02:17.9]} 7... Ne6 {[%clk 0:01:18.2]} 8. Qd2 {[%clk 0:02:14.3]} 8...
Ne7 {[%clk 0:01:10.3]} 9. O-O-O {[%clk 0:02:12.8]} 9... d6 {[%clk 0:01:09.1]}
10. Kb1 {[%clk 0:01:59.3]} 10... a6 {[%clk 0:01:01.4]} 11. Bb3 {[%clk
0:01:40.1]} 11... b5 {[%clk 0:00:24.8]} 12. a4 {[%clk 0:01:40.4]} 12... b4
{[%clk 0:00:20.6]} 13. Nd5 {[%clk 0:01:40.7]} 13... a5 {[%clk 0:00:19.7]} 14. c3
{[%clk 0:01:21.4]} 14... bxc3 {[%clk 0:00:18.8]} 15. Qxc3 {[%clk 0:01:21.9]}
15... Nxd5 {[%clk 0:00:17.3]} 16. exd5 {[%clk 0:01:15.5]} 16... Nf8 {[%clk
0:00:07]} 17. Bc4 {[%clk 0:01:11.3]} 17... Nd7 {[%clk 0:00:06.1]} 18. Bb5 {[%clk
0:01:11.6]} 18... O-O {[%clk 0:00:05.9]} 19. h5 {[%clk 0:01:01.8]} 19... g5
{[%clk 0:00:04.8]} 20. g4 {[%clk 0:00:59.1]} 20... f5 {[%clk 0:00:04.6]} 21.
gxf5 {[%clk 0:00:58.6]} 21... Nb6 {[%clk 0:00:03.7]} 22. Rhg1 {[%clk 0:00:29.1]}
22... Bxf5+ {[%clk 0:00:04.3]} 23. Ka1 {[%clk 0:00:29.2]} 23... e4 {[%clk
0:00:04.4]} 24. Nd4 {[%clk 0:00:29.5]} 24... Nxd5 {[%clk 0:00:03.9]} 25. Bc4
{[%clk 0:00:29.9]} 25... Kh8 {[%clk 0:00:02.5]} 26. Bxd5 {[%clk 0:00:29.9]}
26... c5 {[%clk 0:00:03.2]} 27. Nxf5 {[%clk 0:00:29.9]} 27... Bxc3 {[%clk
0:00:02.4]} 28. bxc3 {[%clk 0:00:30.3]} 28... Rxf5 {[%clk 0:00:03.1]} 29. Bxe4
{[%clk 0:00:30]} 29... Re5 {[%clk 0:00:02.7]} 30. Bxa8 {[%clk 0:00:28.7]} 30...
Qxa8 {[%clk 0:00:03.4]} 31. Rxd6 {[%clk 0:00:28.9]} 31... Qe8 {[%clk 0:00:04]}
32. Rxh6+ {[%clk 0:00:28.8]} 32... Kg7 {[%clk 0:00:03.6]} 33. Rg6+ {[%clk
0:00:29.1]} 33... Kh7 {[%clk 0:00:04.1]} 34. R6xg5 {[%clk 0:00:28.2]} 34...
Qxa4+ {[%clk 0:00:04.2]} 35. Kb2 {[%clk 0:00:28]} 35... c4 {[%clk 0:00:04.8]}
36. Rg7+ {[%clk 0:00:23.8]} 36... Kh8 {[%clk 0:00:04.8]} 37. Rg8+ {[%clk
0:00:24.3]} 37... Kh7 {[%clk 0:00:05.4]} 38. R1g7# {[%clk 0:00:24.9]} 1-0

[Event "*** Titled Tuesday Blitz"]
[Site "Chess.com"]
[Date "2021.03.30"]
[Round "8"]
[White "Nikolaj_6"]
[Black "SaraciNderim"]
[Result "0-1"]
[WhiteElo "2654"]
[BlackElo "2817"]
[TimeControl "180+1"]
[EndTime "11:28:37 PDT"]
[Termination "SaraciNderim won by resignation"]

1. e4 {[%clk 0:02:56.8]} 1... c5 {[%clk 0:02:58.9]} 2. Nf3 {[%clk 0:02:55.8]}
2... Nc6 {[%clk 0:02:55.7]} 3. Bb5 {[%clk 0:02:55.2]} 3... g6 {[%clk 0:02:55.6]}
4. Bxc6 {[%clk 0:02:55]} 4... dxc6 {[%clk 0:02:55.6]} 5. d3 {[%clk 0:02:55.1]}
5... Bg7 {[%clk 0:02:55.6]} 6. h3 {[%clk 0:02:55.5]} 6... e5 {[%clk 0:02:54.6]}
7. Nbd2 {[%clk 0:02:55]} 7... Qc7 {[%clk 0:02:54.4]} 8. O-O {[%clk 0:02:55.1]}
8... Nf6 {[%clk 0:02:53.7]} 9. a3 {[%clk 0:02:54.9]} 9... O-O {[%clk 0:02:53.5]}
10. b4 {[%clk 0:02:55]} 10... Nd7 {[%clk 0:02:53.4]} 11. Rb1 {[%clk 0:02:49.5]}
11... b6 {[%clk 0:02:53.3]} 12. Nc4 {[%clk 0:02:49]} 12... Ba6 {[%clk
0:02:49.4]} 13. Nfd2 {[%clk 0:02:45.4]} 13... Rad8 {[%clk 0:02:47.9]} 14. Qe1
{[%clk 0:02:43.8]} 14... Rfe8 {[%clk 0:02:47.3]} 15. Bb2 {[%clk 0:02:41]} 15...
cxb4 {[%clk 0:02:44.1]} 16. axb4 {[%clk 0:02:40.5]} 16... Nf8 {[%clk 0:02:44.1]}
17. Ra1 {[%clk 0:02:36.3]} 17... Bxc4 {[%clk 0:02:42.3]} 18. Nxc4 {[%clk
0:02:35.6]} 18... Ne6 {[%clk 0:02:42]} 19. Ra6 {[%clk 0:02:27.8]} 19... Nd4
{[%clk 0:02:21]} 20. Bxd4 {[%clk 0:02:25.7]} 20... Rxd4 {[%clk 0:02:19.4]} 21.
Qa1 {[%clk 0:02:25.3]} 21... Re7 {[%clk 0:02:16.5]} 22. Qb2 {[%clk 0:02:17.6]}
22... h6 {[%clk 0:02:10]} 23. Rfa1 {[%clk 0:02:16.3]} 23... Qb8 {[%clk
0:01:56.8]} 24. Nxb6 {[%clk 0:02:05.3]} 24... Rb7 {[%clk 0:01:53.8]} 25. Nc4
{[%clk 0:02:00.3]} 25... Rxb4 {[%clk 0:01:53.3]} 26. Qc1 {[%clk 0:01:59.1]}
26... Rd7 {[%clk 0:01:42.8]} 27. Rxc6 {[%clk 0:01:50.8]} 27... Kh7 {[%clk
0:01:33.1]} 28. Ne3 {[%clk 0:01:45.9]} 28... Rdb7 {[%clk 0:01:30.5]} 29. Qa3
{[%clk 0:01:34.2]} 29... h5 {[%clk 0:01:26.3]} 30. Nd5 {[%clk 0:01:24.5]} 30...
Rb1+ {[%clk 0:01:25.1]} 31. Rxb1 {[%clk 0:01:23.8]} 31... Rxb1+ {[%clk 0:01:26]}
32. Kh2 {[%clk 0:01:24.2]} 32... Rf1 {[%clk 0:01:22.4]} 33. Qb4 {[%clk
0:00:51.5]} 33... Qxb4 {[%clk 0:01:08.6]} 34. Nxb4 {[%clk 0:00:52.4]} 34... Rxf2
{[%clk 0:01:09.2]} 35. c4 {[%clk 0:00:48.7]} 35... Bh6 {[%clk 0:01:08.7]} 36.
Nd5 {[%clk 0:00:45.8]} 36... Rd2 {[%clk 0:01:02.1]} 37. Rc7 {[%clk 0:00:45.6]}
37... Kg7 {[%clk 0:01:01.3]} 38. Rxa7 {[%clk 0:00:40]} 38... Bf4+ {[%clk
0:00:59.6]} 39. Kg1 {[%clk 0:00:35.9]} 39... Rxd3 {[%clk 0:00:57.9]} 40. c5
{[%clk 0:00:31.6]} 40... Be3+ {[%clk 0:00:46.4]} 41. Kf1 {[%clk 0:00:31.4]}
41... Bxc5 {[%clk 0:00:44.4]} 42. Rc7 {[%clk 0:00:30.8]} 42... Bd4 {[%clk
0:00:43.8]} 43. Ke2 {[%clk 0:00:30]} 43... Ra3 {[%clk 0:00:43.7]} 44. Rc8 {[%clk
0:00:25.6]} 44... Ra2+ {[%clk 0:00:43.7]} 45. Kf3 {[%clk 0:00:25.3]} 45... h4
{[%clk 0:00:42.1]} 46. Kg4 {[%clk 0:00:18.8]} 46... Rxg2+ {[%clk 0:00:41.3]} 0-1

[Event "*** Titled Tuesday Blitz"]
[Site "Chess.com"]
[Date "2021.03.30"]
[Round "8"]
[White "Chessbard1972"]
[Black "Redzishchess"]
[Result "1-0"]
[WhiteElo "2242"]
[BlackElo "2343"]
[TimeControl "180+1"]
[EndTime "11:28:38 PDT"]
[Termination "Chessbard1972 won on time"]

1. e4 {[%clk 0:03:00.9]} 1... c5 {[%clk 0:02:59.8]} 2. Nf3 {[%clk 0:03:00.6]}
2... e6 {[%clk 0:03:00.2]} 3. d4 {[%clk 0:03:00.2]} 3... cxd4 {[%clk 0:03:01.1]}
4. Nxd4 {[%clk 0:03:00.5]} 4... Nc6 {[%clk 0:03:02]} 5. Nc3 {[%clk 0:03:00]}
5... Qc7 {[%clk 0:03:01.8]} 6. Be3 {[%clk 0:02:55.7]} 6... Nf6 {[%clk
0:03:01.1]} 7. f3 {[%clk 0:02:52.8]} 7... a6 {[%clk 0:03:01.5]} 8. Qd2 {[%clk
0:02:52.3]} 8... Bb4 {[%clk 0:02:58.9]} 9. a3 {[%clk 0:02:51.4]} 9... Bxc3
{[%clk 0:02:49.4]} 10. Qxc3 {[%clk 0:02:50.1]} 10... d5 {[%clk 0:02:50.3]} 11.
Bd3 {[%clk 0:02:32.9]} 11... O-O {[%clk 0:02:34.1]} 12. Nxc6 {[%clk 0:02:28.5]}
12... Qxc6 {[%clk 0:02:32.5]} 13. Bd4 {[%clk 0:02:18.8]} 13... Qxc3+ {[%clk
0:02:24.1]} 14. Bxc3 {[%clk 0:02:16.8]} 14... dxe4 {[%clk 0:02:25]} 15. fxe4
{[%clk 0:02:16]} 15... Nd7 {[%clk 0:02:15.8]} 16. O-O-O {[%clk 0:02:07.2]} 16...
b5 {[%clk 0:02:11.7]} 17. e5 {[%clk 0:01:58.7]} 17... Nb6 {[%clk 0:02:01.8]} 18.
Be4 {[%clk 0:01:56.4]} 18... Nd5 {[%clk 0:01:53.9]} 19. Bxd5 {[%clk 0:01:54.9]}
19... exd5 {[%clk 0:01:54.8]} 20. Rxd5 {[%clk 0:01:54.7]} 20... Bb7 {[%clk
0:01:38.9]} 21. Rd2 {[%clk 0:01:52.4]} 21... a5 {[%clk 0:01:38.8]} 22. b3 {[%clk
0:01:34.3]} 22... b4 {[%clk 0:01:28]} 23. Bb2 {[%clk 0:01:31.9]} 23... Rfe8
{[%clk 0:01:13.6]} 24. a4 {[%clk 0:01:28.8]} 24... Rac8 {[%clk 0:01:09.9]} 25.
Rg1 {[%clk 0:01:24.5]} 25... Re6 {[%clk 0:00:53.8]} 26. Rgd1 {[%clk 0:01:19.5]}
26... Kf8 {[%clk 0:00:49.4]} 27. Rd8+ {[%clk 0:01:18.3]} 27... Rxd8 {[%clk
0:00:49.4]} 28. Rxd8+ {[%clk 0:01:18.2]} 28... Ke7 {[%clk 0:00:50]} 29. Rd2
{[%clk 0:01:16.4]} 29... Rc6 {[%clk 0:00:25.8]} 30. g3 {[%clk 0:01:12.6]} 30...
Ke6 {[%clk 0:00:17.7]} 31. Rd8 {[%clk 0:01:09.8]} 31... Rc5 {[%clk 0:00:14.1]}
32. Bd4 {[%clk 0:01:03.9]} 32... Rc7 {[%clk 0:00:01.6]} 33. Bb6 {[%clk
0:00:59.2]} 33... Rc6 {[%clk 0:00:02.1]} 34. Bxa5 {[%clk 0:00:53.5]} 34... Kxe5
{[%clk 0:00:03]} 35. Bxb4 {[%clk 0:00:53]} 35... Ba6 {[%clk 0:00:03.4]} 36. Kd2
{[%clk 0:00:49.8]} 36... h5 {[%clk 0:00:02.8]} 37. Bc3+ {[%clk 0:00:48.7]} 37...
Ke4 {[%clk 0:00:01.6]} 38. Bxg7 {[%clk 0:00:46.4]} 38... Kf3 {[%clk 0:00:02.1]}
39. Be5 {[%clk 0:00:42.7]} 39... Kg2 {[%clk 0:00:01.6]} 40. h4 {[%clk
0:00:42.1]} 40... Re6 {[%clk 0:00:01]} 41. Rd5 {[%clk 0:00:39.1]} 1-0

[Event "*** Titled Tuesday Blitz"]
[Site "Chess.com"]
[Date "2021.03.30"]
[Round "8"]
[White "LenkaPtacnikova"]
[Black "Zipa5"]
[Result "0-1"]
[WhiteElo "2146"]
[BlackElo "1928"]
[TimeControl "180+1"]
[EndTime "11:28:39 PDT"]
[Termination "Zipa5 won by resignation"]

1. Nf3 {[%clk 0:03:00.9]} 1... g6 {[%clk 0:02:57.8]} 2. g3 {[%clk 0:03:01.1]}
2... Bg7 {[%clk 0:02:57.4]} 3. Bg2 {[%clk 0:03:01.8]} 3... Nf6 {[%clk
0:02:55.7]} 4. O-O {[%clk 0:03:02.4]} 4... O-O {[%clk 0:02:55.3]} 5. c4 {[%clk
0:03:02.4]} 5... d6 {[%clk 0:02:51.7]} 6. Nc3 {[%clk 0:03:02.9]} 6... Nbd7
{[%clk 0:02:48.8]} 7. e4 {[%clk 0:02:46]} 7... e5 {[%clk 0:02:44.1]} 8. d3
{[%clk 0:02:45.2]} 8... c6 {[%clk 0:02:40.5]} 9. Be3 {[%clk 0:02:44.8]} 9... Ng4
{[%clk 0:02:30.2]} 10. Bg5 {[%clk 0:02:44.7]} 10... f6 {[%clk 0:02:29.7]} 11.
Bd2 {[%clk 0:02:43.8]} 11... Nh6 {[%clk 0:02:28.1]} 12. d4 {[%clk 0:02:41.7]}
12... Nf7 {[%clk 0:02:20.7]} 13. Be3 {[%clk 0:02:40.7]} 13... Qe7 {[%clk
0:02:13.8]} 14. Re1 {[%clk 0:02:27]} 14... a5 {[%clk 0:02:03.5]} 15. Rc1 {[%clk
0:02:19]} 15... Bh6 {[%clk 0:01:57]} 16. dxe5 {[%clk 0:02:04]} 16... dxe5 {[%clk
0:01:49]} 17. Rc2 {[%clk 0:02:00]} 17... Bxe3 {[%clk 0:01:44.5]} 18. Rxe3 {[%clk
0:01:59.2]} 18... Nc5 {[%clk 0:01:42.6]} 19. Rd2 {[%clk 0:01:58.2]} 19... Be6
{[%clk 0:01:37.5]} 20. b3 {[%clk 0:01:57]} 20... Rfd8 {[%clk 0:01:28.1]} 21.
Ree2 {[%clk 0:01:56.5]} 21... Rxd2 {[%clk 0:01:09.2]} 22. Rxd2 {[%clk
0:01:55.6]} 22... Rd8 {[%clk 0:01:08.5]} 23. Rxd8+ {[%clk 0:01:46.5]} 23... Qxd8
{[%clk 0:01:06.1]} 24. Qxd8+ {[%clk 0:01:45.6]} 24... Nxd8 {[%clk 0:01:05.5]}
25. Kf1 {[%clk 0:01:45.5]} 25... Kf7 {[%clk 0:01:03.1]} 26. Ke2 {[%clk
0:01:45.9]} 26... Ke7 {[%clk 0:01:00.3]} 27. Ke3 {[%clk 0:01:46.4]} 27... Nf7
{[%clk 0:00:55.7]} 28. h4 {[%clk 0:01:40.2]} 28... Nd6 {[%clk 0:00:51.8]} 29.
Ng1 {[%clk 0:01:38.1]} 29... b5 {[%clk 0:00:49.4]} 30. cxb5 {[%clk 0:01:35.4]}
30... Nxb5 {[%clk 0:00:47.4]} 31. Nge2 {[%clk 0:01:24.3]} 31... Kd6 {[%clk
0:00:42.2]} 32. f4 {[%clk 0:01:17.2]} 32... Nd7 {[%clk 0:00:29.7]} 33. Bf3
{[%clk 0:01:14.1]} 33... Nxc3 {[%clk 0:00:20.5]} 34. Nxc3 {[%clk 0:01:13.2]}
34... Kc5 {[%clk 0:00:17.2]} 35. Kd3 {[%clk 0:01:08.9]} 35... Kb4 {[%clk
0:00:15.5]} 36. Nb1 {[%clk 0:01:06]} 36... a4 {[%clk 0:00:11.9]} 37. bxa4 {[%clk
0:00:58.4]} 37... Kxa4 {[%clk 0:00:11]} 38. Bd1+ {[%clk 0:00:54.5]} 38... Kb4
{[%clk 0:00:07.9]} 39. a3+ {[%clk 0:00:54.5]} 39... Kb5 {[%clk 0:00:06.1]} 40.
Nc3+ {[%clk 0:00:52.2]} 40... Ka5 {[%clk 0:00:02.5]} 41. Ba4 {[%clk 0:00:48.4]}
41... Nc5+ {[%clk 0:00:02.1]} 42. Ke3 {[%clk 0:00:47.8]} 42... Nxa4 {[%clk
0:00:01.7]} 0-1

[Event "*** Titled Tuesday Blitz"]
[Site "Chess.com"]
[Date "2021.03.30"]
[Round "8"]
[White "chessdiamant"]
[Black "Gudmundur_Kjartansson"]
[Result "1-0"]
[WhiteElo "2408"]
[BlackElo "2514"]
[TimeControl "180+1"]
[EndTime "11:28:42 PDT"]
[Termination "chessdiamant won by checkmate"]

1. d4 {[%clk 0:03:00.9]} 1... d6 {[%clk 0:02:59]} 2. e4 {[%clk 0:03:00.1]} 2...
Nf6 {[%clk 0:02:58.4]} 3. Nc3 {[%clk 0:02:59.9]} 3... e5 {[%clk 0:02:58.1]} 4.
Nge2 {[%clk 0:02:54.1]} 4... Nbd7 {[%clk 0:02:56.5]} 5. Be3 {[%clk 0:02:53]}
5... c6 {[%clk 0:02:54.9]} 6. Qd2 {[%clk 0:02:51.2]} 6... Qc7 {[%clk 0:02:54.6]}
7. a4 {[%clk 0:02:49.8]} 7... Be7 {[%clk 0:02:52.3]} 8. f3 {[%clk 0:02:49.2]}
8... O-O {[%clk 0:02:52]} 9. h4 {[%clk 0:02:49.2]} 9... Re8 {[%clk 0:02:45.8]}
10. h5 {[%clk 0:02:48.2]} 10... d5 {[%clk 0:02:43.5]} 11. exd5 {[%clk 0:02:46]}
11... Nxd5 {[%clk 0:02:33.6]} 12. Nxd5 {[%clk 0:02:45.4]} 12... cxd5 {[%clk
0:02:33.7]} 13. O-O-O {[%clk 0:02:38.7]} 13... Nb6 {[%clk 0:02:25.9]} 14. b3
{[%clk 0:02:32.1]} 14... Bf5 {[%clk 0:02:10.1]} 15. Ng3 {[%clk 0:02:29.1]} 15...
Be6 {[%clk 0:02:09.7]} 16. f4 {[%clk 0:02:19.1]} 16... e4 {[%clk 0:01:44.4]} 17.
h6 {[%clk 0:01:53.1]} 17... g6 {[%clk 0:01:42.8]} 18. f5 {[%clk 0:01:49.2]}
18... Bd7 {[%clk 0:01:06.1]} 19. fxg6 {[%clk 0:01:39.6]} 19... Qxg3 {[%clk
0:01:04.8]} 20. gxf7+ {[%clk 0:01:35.9]} 20... Kxf7 {[%clk 0:01:04.6]} 21. Be2
{[%clk 0:01:26.3]} 21... Bb4 {[%clk 0:00:55.4]} 22. Rdf1+ {[%clk 0:01:16.1]}
22... Kg8 {[%clk 0:00:53.6]} 23. Qxb4 {[%clk 0:00:58.8]} 23... Qxe3+ {[%clk
0:00:52.9]} 24. Kd1 {[%clk 0:00:57.5]} 24... Re6 {[%clk 0:00:38.5]} 25. Rh3
{[%clk 0:00:54]} 25... Qg5 {[%clk 0:00:34.1]} 26. Rh5 {[%clk 0:00:44.4]} 26...
Qxg2 {[%clk 0:00:32]} 27. Rhf5 {[%clk 0:00:43.8]} 27... Ree8 {[%clk 0:00:25.7]}
28. R5f2 {[%clk 0:00:43.5]} 28... Qg6 {[%clk 0:00:25.2]} 29. Rf6 {[%clk
0:00:27.7]} 29... Qg5 {[%clk 0:00:20.3]} 30. Qd6 {[%clk 0:00:19.5]} 30... Bg4
{[%clk 0:00:18]} 31. a5 {[%clk 0:00:16.5]} 31... Bxe2+ {[%clk 0:00:17.5]} 32.
Kxe2 {[%clk 0:00:17.4]} 32... Rac8 {[%clk 0:00:17]} 33. Kd1 {[%clk 0:00:16.2]}
33... Qe3 {[%clk 0:00:15.2]} 34. Rg6+ {[%clk 0:00:14.1]} 34... hxg6 {[%clk
0:00:12.6]} 35. Qxg6+ {[%clk 0:00:14]} 35... Kh8 {[%clk 0:00:13.3]} 36. Qg7#
{[%clk 0:00:14.8]} 1-0

[Event "*** Titled Tuesday Blitz"]
[Site "Chess.com"]
[Date "2021.03.30"]
[Round "8"]
[White "BeyondMadness"]
[Black "RamyresCoelho"]
[Result "0-1"]
[WhiteElo "2259"]
[BlackElo "2159"]
[TimeControl "180+1"]
[EndTime "11:28:46 PDT"]
[Termination "RamyresCoelho won by resignation"]

1. d4 {[%clk 0:03:00.9]} 1... Nf6 {[%clk 0:02:57.5]} 2. c4 {[%clk 0:03:00.2]}
2... g6 {[%clk 0:02:57.1]} 3. Nc3 {[%clk 0:02:59.6]} 3... d5 {[%clk 0:02:56.9]}
4. Nf3 {[%clk 0:02:58.7]} 4... Bg7 {[%clk 0:02:56.8]} 5. Qb3 {[%clk 0:02:58.4]}
5... dxc4 {[%clk 0:02:56.2]} 6. Qxc4 {[%clk 0:02:58.9]} 6... O-O {[%clk
0:02:57.1]} 7. e4 {[%clk 0:02:57.7]} 7... a6 {[%clk 0:02:54.4]} 8. Be2 {[%clk
0:02:56.7]} 8... b5 {[%clk 0:02:53.4]} 9. Qb3 {[%clk 0:02:57.1]} 9... Bb7 {[%clk
0:02:52.7]} 10. e5 {[%clk 0:02:55.8]} 10... Ne4 {[%clk 0:02:48.3]} 11. O-O
{[%clk 0:02:47.9]} 11... Nxc3 {[%clk 0:02:42.5]} 12. Qxc3 {[%clk 0:02:48.8]}
12... Nd7 {[%clk 0:02:34.3]} 13. Bg5 {[%clk 0:02:31.8]} 13... h6 {[%clk
0:02:32.3]} 14. Be3 {[%clk 0:02:23.3]} 14... e6 {[%clk 0:02:26.8]} 15. Rac1
{[%clk 0:02:17.5]} 15... Rc8 {[%clk 0:02:27.1]} 16. Qd2 {[%clk 0:02:15.5]} 16...
Kh7 {[%clk 0:02:25.1]} 17. Rfd1 {[%clk 0:02:12.4]} 17... Nb6 {[%clk 0:02:24.6]}
18. b3 {[%clk 0:02:00.3]} 18... Nd5 {[%clk 0:02:23.3]} 19. h4 {[%clk 0:01:51]}
19... Qe7 {[%clk 0:02:09.9]} 20. h5 {[%clk 0:01:48.1]} 20... Nxe3 {[%clk
0:02:03.5]} 21. hxg6+ {[%clk 0:01:38.5]} 21... fxg6 {[%clk 0:02:02.5]} 22. Qxe3
{[%clk 0:01:38.8]} 22... Bd5 {[%clk 0:01:51.8]} 23. Rc5 {[%clk 0:01:23.8]} 23...
c6 {[%clk 0:01:47]} 24. a4 {[%clk 0:01:15.1]} 24... Rf5 {[%clk 0:01:40.3]} 25.
axb5 {[%clk 0:01:07.2]} 25... axb5 {[%clk 0:01:41.2]} 26. Ra1 {[%clk 0:01:07]}
26... Rcf8 {[%clk 0:01:38.7]} 27. Rc3 {[%clk 0:00:50.2]} 27... g5 {[%clk
0:01:36.1]} 28. Bd3 {[%clk 0:00:48.6]} 28... g4 {[%clk 0:01:27.8]} 29. Nd2
{[%clk 0:00:44.9]} 29... Qh4 {[%clk 0:01:20.6]} 30. Nf1 {[%clk 0:00:39.8]} 30...
Kh8 {[%clk 0:01:09.6]} 31. Bxf5 {[%clk 0:00:38.2]} 31... exf5 {[%clk 0:01:08.7]}
32. Qg3 {[%clk 0:00:32.7]} 32... Qg5 {[%clk 0:01:05.3]} 33. Ra7 {[%clk
0:00:18.9]} 33... f4 {[%clk 0:01:02.3]} 34. Qd3 {[%clk 0:00:18.7]} 34... f3
{[%clk 0:00:50.9]} 35. Ng3 {[%clk 0:00:12.9]} 35... fxg2 {[%clk 0:00:40.6]} 36.
Qe3 {[%clk 0:00:12.4]} 36... Qh4 {[%clk 0:00:28.4]} 37. f4 {[%clk 0:00:09.3]}
37... Qh1+ {[%clk 0:00:27.1]} 0-1